Workbook

Sheet 使い方
B1: 【 シミュレーターの使い方 】
B2: 【AG-005：水稲栽培における中干し期間の延長】
B4: ■入力用シート | D4: ☜ クリックするとページにジャンプします。
B5: モニタリング項目を入力することで、排出削減量が確認できます。
B31: ■計算方法 | D31: ☜ クリックするとページにジャンプします。
B32: ベースライン排出量やプロジェクト実施後の排出量と計算式が確認できます。

Sheet 入力用シート
C2: 【AG-005：水稲栽培における中干し期間の延長】
C3: 【黄色セルを上から順に、リストから選択または数値をご記入ください。】
F4: 自動入力
F5: プロジェクト実施者が入力
C7: 排出削減量(t-CO2) | D7: =計算方法!D8 -> 7 | F7: ☜下記の黄色セルを入力することで、最終的に排出削減量が計算されます。
C9: 1) 活動量のモニタリング
B10: モニタリング項目 | D10: 数値 | E10: 単位 | F10: 備考 | G10: モニタリング方法例 | H10: モニタリング頻度
B11: APJ | C11: プロジェクト実施後の水稲作付面積（ha） | D11: 1.8 | E11: ha | F11: 水稲の作付面積を入力ください。 | G11: ・eMAFF 農地ナビ、実測、生産管理記録等で把握 | H11: 作付一回ごとに 1 回
C13: 2) 係数のモニタリング
B14: モニタリング項目 | D14: 数値 | E14: 単位 | F14: 備考 | G14: モニタリング方法例 | H14: モニタリング頻度
C15: プロジェクト実施水田の所在都道府県 | D15: 秋田県 | F15: 選択肢から選択してください。 | G15: ・eMAFF 農地ナビ、生産管理記録等で確認
B16: ί | C16: プロジェクト実施水田の所在地域 | D16: =VLOOKUP(D15,プロジェクト実施水田の所在地域!A1:B47,2,) -> 東北 | F16: 選択肢から選択してください。 | G16: ・eMAFF 農地ナビ、生産管理記録等で確認 | H16: 初回検証申請時に1回
C17: 日減水深の測定結果（mm/日） | F17: 日減水深の測定結果がある場合、入力ください。
C18: 調整係数 | D18: 1.22
C19: 調整後日減水深 | D19: =IF(D17="","",D17*D18) ->  | F19: 自動で入力されます。
C20: プロジェクト実施水田の排水性（測定する場合） | D20: =IF(D19="", "", IF(D19>=12.5, "4時間排除（12.5mm/日以上）", IF(D19>=7.5, "日排除（7.5mm/日以上12.5mm/日未満）", "排水不良（7.5mm/日未満）"))) ->  | F20: 自動で入力されます。
B21: j | C21: プロジェクト実施水田の排水性 | D21: 4時間排除（12.5mm/日以上） | F21: 選択肢から選択してください。 原則としてデフォルト値の定められた 3 条件（排水不良・日排除・4 時間排除）のうち、当該水田の所在地域、施用有機物の条件で最低の排出係数となる条件となります。 （日減水深の測定結果がある場合は、『プロジェクト実施水田の排水性（測定する場合）』と同じ選択肢を選択してください。） | G21: ・原則としてデフォルト値の定められた 3 条件（排水不良・日排除・4 時間排除）のうち、当該水田の所在地域、施用有機物の条件で最低の排出係数となる条件とする。ただし、1人の取組実施者が管理する水田ごとに 1 か所、水田の日減水深（田面水の浸透・蒸発速度（mm／日））を実測し、その結果に基づきより高い排出係数の条件とすることができる。 | H21: 初回検証申請時に1回（ただし日減水深の実測により、2回目以降の検証申請時に更新することも可）
D22: =D16&D21 -> 東北4時間排除（12.5mm/日以上）
C23: 稲わら持ち出し量（kg/10a） | D23: 0 | F23: 稲わらの持ち出し量を入力ください。 （全量すき込みの場合は、0と入力ください。）
C24: 稲わら発生量（kg/10a） | D24: =VLOOKUP(D15,係数表_2023!$H$2:$I$49,2,FALSE) -> 692.4 | F24: 自動で入力されます。
C25: 稲わらすき込み率（％） ※90％以上の場合は90と出力される | D25: =IF(D23="", "", IF(100*(1-(D23/D24))>=90, 90, IF(100*(1-(D23/D24))<0, 0, 100*(1-(D23/D24))))) -> 90 | F25: 自動で入力されます。
C26: 堆肥施用量（t/10a） | D26: 0.5 | F26: 堆肥施用量を入力ください。
C27: ※1t/10a以上の場合は1と出力される | D27: =IF(D26>1,1,D26) -> 0.5 | F27: 自動で入力されます。
B28: GWPCH4 | C28: CH4 の地球温暖化係数 | D28: 28 | F28: ー | G28: ・デフォルト値を使用 | H28: 【要求頻度】 検証申請時に最新のものを使用

Sheet 計算方法
B1: 計算方法：水稲栽培における中干し期間の延長 | D1: 【自動で計算されます。】
D2: 自動入力
B4: １．適用条件 | C4: 計算式記載なし
B6: ２．排出削減量の算定
B7: 記号 | C7: 定義 | D7: 数値 | E7: 単位 | F7: 計算式 | G7: 備考
B8: ER | C8: 排出削減量 | D8: =ROUNDDOWN(D9-D10,0) -> 7 | E8: tCO2e/年 | F8: ER = EMBL － EMPJ | G8: ー
B9: EMBL | C9: ベースライン排出量 | D9: =ROUND(D31,1) -> 23.9 | E9: tCO2e/年 | F9: ― | G9: ー
B10: EMPJ | C10: プロジェクト実施後排出量 | D10: =ROUND(D15,1) -> 16.7 | E10: tCO2e/年 | F10: ― | G10: ー
B13: ３．プロジェクト実施後排出量の算定
B14: 記号 | C14: 定義 | D14: 数値 | E14: 単位 | F14: 計算式 | G14: 備考
B15: EMPJ | C15: プロジェクト実施後排出量 | D15: =D32*D17*16/12*D35*1/1000 -> 16.6992 | E15: tCO2e/年 | F15: EMPJ = Σ(APJ × EFi,j,k,l,m1) × 16/12 × GWPCH4 × 10-3 | G15: ー
B16: APJ | C16: プロジェクト実施後の水稲作付面積 | D16: =入力用シート!D11 -> 1.8 | E16: ha | F16: ― | G16: ー
B17: EFi,j,k,l,m1 | C17: プロジェクト実施後の CH4 排出係数 | D17: =D33*(1-0.3) -> 248.5 | E17: kg-CH4-C/ha/年 | F17: ― | G17: ー
B18: 16/12 | C18: CH4 中に含まれる炭素重量（kgCH4-C）を CH4重量（kgCH4）に変換するための係数 | D18: ー | E18: kg-CH4/kg-CH4-C | F18: ― | G18: ー
B19: GWPCH4 | C19: CH4 の地球温暖化係数 | D19: =入力用シート!D28 -> 28 | E19: tCO2e/tCH4 | F19: ― | G19: ー
B20: 10-3 | C20: 単位換算 | D20: ー | E20: tCH4/kg-CH4 | F20: ― | G20: ー
B23: ４．ベースライン排出量の考え方
B24: 記号 | C24: 定義 | D24: 数値 | E24: 単位 | F24: 計算式 | G24: 備考
B25: ABL | C25: ベースラインの水稲作付面積 | D25: =D16 -> 1.8 | E25: ha | F25: ABL = APJ | G25: ー
B26: APJ | C26: プロジェクト実施後の水稲作付面積 | D26: =D16 -> 1.8 | E26: ha | F26: ― | G26: ー
B29: ５．ベースライン排出量の算定
B30: 記号 | C30: 定義 | D30: 数値 | E30: 単位 | F30: 計算式 | G30: 備考
B31: EMBL | C31: ベースライン排出量 | D31: =D32*D33*16/12*D35*1/1000 -> 23.856 | E31: tCO2e/年 | F31: EMBL = Σ(ABL × EFi,j,k,l,m0) × 16/12 × GWPCH4 × 10-3 | G31: ー
B32: ABL | C32: ベースラインの水稲作付面積 | D32: =D25 -> 1.8 | E32: ha | F32: ― | G32: ー
B33: EFi,j,k,l,m0 | C33: ベースラインの CH4 排出係数 | D33: =IFERROR(MIN(MAX(D39,D40),D41+(D39-D41)*入力用シート!D25/90+(D40-D41)*入力用シート!D27),"―") -> 355 | E33: kg-CH4-C/ha/年 | F33: ― | G33: ー
B34: 16/12 | C34: CH4 中に含まれる炭素重量（kgCH4-C）を CH4重量（kgCH4）に変換するための係数 | D34: ー | E34: kg-CH4/kg-CH4-C | F34: ― | G34: ー
B35: GWPCH4 | C35: CH4 の地球温暖化係数 | D35: =入力用シート!D28 -> 28 | E35: tCO2e/tCH4 | F35: ― | G35: ー
B36: 10-3 | C36: 単位換算 | D36: ー | E36: tCH4/kg-CH4 | F36: ― | G36: ー
B38: 計算用
B39: 稲わら | D39: =VLOOKUP(入力用シート!D22,係数表_2023!$C$2:$F$23,2,FALSE) -> 355
B40: 堆肥 | D40: =VLOOKUP(入力用シート!D22,係数表_2023!$C$2:$F$23,3,FALSE) -> 335
B41: 無施用 | D41: =VLOOKUP(入力用シート!D22,係数表_2023!$C$2:$F$23,4,FALSE) -> 59

Sheet Sheet1 (hidden)

Sheet プロジェクト実施水田の所在地域 (hidden)
A1: 北海道 | B1: 北海道 | C1: 排水不良（7.5mm/日未満）
A2: 青森県 | B2: 東北 | C2: 日排除（7.5mm/日以上12.5mm/日未満）
A3: 岩手県 | B3: 東北 | C3: 4時間排除（12.5mm/日以上）
A4: 宮城県 | B4: 東北
A5: 秋田県 | B5: 東北
A6: 山形県 | B6: 東北
A7: 福島県 | B7: 東北
A8: 茨城県 | B8: 関東
A9: 栃木県 | B9: 関東
A10: 群馬県 | B10: 関東
A11: 埼玉県 | B11: 関東
A12: 千葉県 | B12: 関東
A13: 東京都 | B13: 関東
A14: 神奈川県 | B14: 関東
A15: 新潟県 | B15: 北陸
A16: 富山県 | B16: 北陸
A17: 石川県 | B17: 北陸
A18: 福井県 | B18: 北陸
A19: 山梨県 | B19: 東海・近畿
A20: 長野県 | B20: 東海・近畿
A21: 岐阜県 | B21: 東海・近畿
A22: 静岡県 | B22: 東海・近畿
A23: 愛知県 | B23: 東海・近畿
A24: 三重県 | B24: 東海・近畿
A25: 滋賀県 | B25: 東海・近畿
A26: 京都府 | B26: 東海・近畿
A27: 大阪府 | B27: 東海・近畿
A28: 兵庫県 | B28: 東海・近畿
A29: 奈良県 | B29: 東海・近畿
A30: 和歌山県 | B30: 東海・近畿
A31: 鳥取県 | B31: 中国・四国
A32: 島根県 | B32: 中国・四国
A33: 岡山県 | B33: 中国・四国
A34: 広島県 | B34: 中国・四国
A35: 山口県 | B35: 中国・四国
A36: 徳島県 | B36: 中国・四国
A37: 香川県 | B37: 中国・四国
A38: 愛媛県 | B38: 中国・四国
A39: 高知県 | B39: 中国・四国
A40: 福岡県 | B40: 九州・沖縄
A41: 佐賀県 | B41: 九州・沖縄
A42: 長崎県 | B42: 九州・沖縄
A43: 熊本県 | B43: 九州・沖縄
A44: 大分県 | B44: 九州・沖縄
A45: 宮崎県 | B45: 九州・沖縄
A46: 鹿児島県 | B46: 九州・沖縄
A47: 沖縄県 | B47: 九州・沖縄

Sheet 係数表_2023 (hidden)
C1: CH4 排出係数［kg-CH4-C/ha］
D2: 稲わら | E2: 堆肥 | F2: 無施用 | I2: 稲わら発生量 (kg) | J2: 平年収量 (kg) | Q2: =16/12 -> 1.333333333
A3: 北海道 | B3: 排水不良（7.5mm/日未満） | C3: =A3&B3 -> 北海道排水不良（7.5mm/日未満） | D3: 662 | E3: 649 | F3: 114 | H3: 北海道 | I3: =J3*1.2 -> 673.2 | J3: 561 | P3: =D3*$Q$2*28*0.001 -> 24.71466667 | Q3: =E3*$Q$2*28*0.001 -> 24.22933333 | R3: 4.256 | S3: =P3*0.3 -> 7.4144 | T3: =Q3*0.3 -> 7.2688 | U3: 1.2768
A4: 北海道 | B4: 日排除（7.5mm/日以上12.5mm/日未満） | C4: =A4&B4 -> 北海道日排除（7.5mm/日以上12.5mm/日未満） | D4: 271 | E4: 265 | F4: 21 | H4: 青森県 | I4: =J4*1.2 -> 723.6 | J4: 603 | P4: =D4*$Q$2*28*0.001 -> 10.11733333 | Q4: =E4*$Q$2*28*0.001 -> 9.893333333 | R4: =F4*$Q$2*28*0.001 -> 0.784 | S4: =P4*0.3 -> 3.0352 | T4: 2.968 | U4: 0.2352
A5: 北海道 | B5: 4時間排除（12.5mm/日以上） | C5: 北海道4時間排除（12.5mm/日以上） | D5: 197 | E5: 192 | F5: 14 | H5: 岩手県 | I5: 648 | J5: 540 | P5: 7.354666667 | Q5: 7.168 | R5: 0.5226666667 | S5: 2.2064 | T5: 2.1504 | U5: 0.1568
A6: 東北 | B6: 排水不良（7.5mm/日未満） | C6: 東北排水不良（7.5mm/日未満） | D6: 711 | E6: 673 | F6: 153 | H6: 宮城県 | I6: 649.2 | J6: 541 | P6: 26.544 | Q6: 25.12533333 | R6: 5.712 | S6: 7.9632 | T6: 7.5376 | U6: 1.7136
A7: 東北 | B7: 日排除（7.5mm/日以上12.5mm/日未満） | C7: 東北日排除（7.5mm/日以上12.5mm/日未満） | D7: 392 | E7: 370 | F7: 71 | H7: 秋田県 | I7: 692.4 | J7: 577 | P7: 14.63466667 | Q7: 13.81333333 | R7: 2.650666667 | S7: 4.3904 | T7: 4.144 | U7: 0.7952
A8: 東北 | B8: 4時間排除（12.5mm/日以上） | C8: 東北4時間排除（12.5mm/日以上） | D8: 355 | E8: 335 | F8: 59 | H8: 山形県 | I8: 717.6 | J8: 598 | P8: 13.25333333 | Q8: 12.50666667 | R8: 2.202666667 | S8: 3.976 | T8: 3.752 | U8: 0.6608
A9: 北陸 | B9: 排水不良（7.5mm/日未満） | C9: 北陸排水不良（7.5mm/日未満） | D9: 515 | E9: 412 | F9: 33 | H9: 福島県 | I9: 661.2 | J9: 551 | P9: 19.22666667 | Q9: 15.38133333 | R9: 1.232 | S9: 5.768 | T9: 4.6144 | U9: 0.3696
A10: 北陸 | B10: 日排除（7.5mm/日以上12.5mm/日未満） | C10: 北陸日排除（7.5mm/日以上12.5mm/日未満） | D10: 376 | E10: 302 | F10: 31 | H10: 茨城県 | I10: 632.4 | J10: 527 | P10: 14.03733333 | Q10: 11.27466667 | R10: 1.157333333 | S10: 4.2112 | T10: 3.3824 | U10: 0.3472
A11: 北陸 | B11: 4時間排除（12.5mm/日以上） | C11: 北陸4時間排除（12.5mm/日以上） | D11: 332 | E11: 266 | F11: 22 | H11: 栃木県 | I11: 648 | J11: 540 | P11: 12.39466667 | Q11: 9.930666667 | R11: 0.8213333333 | S11: 3.7184 | T11: 2.9792 | U11: 0.2464
A12: 関東 | B12: 排水不良（7.5mm/日未満） | C12: 関東排水不良（7.5mm/日未満） | D12: 224 | E12: 235 | F12: 17 | H12: 群馬県 | I12: 597.6 | J12: 498 | P12: 8.362666667 | Q12: 8.773333333 | R12: 0.6346666667 | S12: 2.5088 | T12: 2.632 | U12: 0.1904
A13: 関東 | B13: 日排除（7.5mm/日以上12.5mm/日未満） | C13: 関東日排除（7.5mm/日以上12.5mm/日未満） | D13: 121 | E13: 127 | F13: 15 | H13: 埼玉県 | I13: 592.8 | J13: 494 | P13: 4.517333333 | Q13: 4.741333333 | R13: 0.56 | S13: 1.3552 | T13: 1.4224 | U13: 0.168
A14: 関東 | B14: 4時間排除（12.5mm/日以上） | C14: 関東4時間排除（12.5mm/日以上） | D14: 151 | E14: 157 | F14: 16 | H14: 千葉県 | I14: 652.8 | J14: 544 | P14: 5.637333333 | Q14: 5.861333333 | R14: 0.5973333333 | S14: 1.6912 | T14: 1.7584 | U14: 0.1792
A15: 東海・近畿 | B15: 排水不良（7.5mm/日未満） | C15: 東海・近畿排水不良（7.5mm/日未満） | D15: 378 | E15: 345 | F15: 21 | H15: 東京都 | I15: 496.8 | J15: 414 | P15: 14.112 | Q15: 12.88 | R15: 0.784 | S15: 4.2336 | T15: 3.864 | U15: 0.2352
A16: 東海・近畿 | B16: 日排除（7.5mm/日以上12.5mm/日未満） | C16: 東海・近畿日排除（7.5mm/日以上12.5mm/日未満） | D16: 95 | E16: 87 | F16: 2 | H16: 神奈川県 | I16: 592.8 | J16: 494 | P16: 3.546666667 | Q16: 3.248 | R16: 0.07466666667 | S16: 1.064 | T16: 0.9744 | U16: 0.0224
A17: 東海・近畿 | B17: 4時間排除（12.5mm/日以上） | C17: 東海・近畿4時間排除（12.5mm/日以上） | D17: 128 | E17: 116 | F17: 6 | H17: 新潟県 | I17: 655.2 | J17: 546 | P17: 4.778666667 | Q17: 4.330666667 | R17: 0.224 | S17: 1.4336 | T17: 1.2992 | U17: 0.0672
A18: 中国・四国 | B18: 排水不良（7.5mm/日未満） | C18: 中国・四国排水不良（7.5mm/日未満） | D18: 394 | E18: 417 | F18: 57 | H18: 富山県 | I18: 656.4 | J18: 547 | P18: 14.70933333 | Q18: 15.568 | R18: 2.128 | S18: 4.4128 | T18: 4.6704 | U18: 0.6384
A19: 中国・四国 | B19: 日排除（7.5mm/日以上12.5mm/日未満） | C19: 中国・四国日排除（7.5mm/日以上12.5mm/日未満） | D19: 93 | E19: 99 | F19: 5 | H19: 石川県 | I19: 627.6 | J19: 523 | P19: 3.472 | Q19: 3.696 | R19: 0.1866666667 | S19: 1.0416 | T19: =Q19*0.3 -> 1.1088 | U19: =R19*0.3 -> 0.056
A20: 中国・四国 | B20: 4時間排除（12.5mm/日以上） | C20: 中国・四国4時間排除（12.5mm/日以上） | D20: 163 | E20: 173 | F20: 17 | H20: 福井県 | I20: 622.8 | J20: 519 | P20: 6.085333333 | Q20: 6.458666667 | R20: 0.6346666667 | S20: 1.8256 | T20: 1.9376 | U20: 0.1904
A21: 九州・沖縄 | B21: 排水不良（7.5mm/日未満） | C21: 九州・沖縄排水不良（7.5mm/日未満） | D21: 152 | E21: 221 | F21: 19 | H21: 山梨県 | I21: 656.4 | J21: 547 | P21: 5.674666667 | Q21: 8.250666667 | R21: 0.7093333333 | S21: 1.7024 | T21: 2.4752 | U21: 0.2128
A22: 九州・沖縄 | B22: 日排除（7.5mm/日以上12.5mm/日未満） | C22: 九州・沖縄日排除（7.5mm/日以上12.5mm/日未満） | D22: 82 | E22: 121 | F22: 7 | H22: 長野県 | I22: 742.8 | J22: 619 | P22: 3.061333333 | Q22: 4.517333333 | R22: 0.2613333333 | S22: 0.9184 | T22: 1.3552 | U22: 0.0784
A23: 九州・沖縄 | B23: 4時間排除（12.5mm/日以上） | C23: 九州・沖縄4時間排除（12.5mm/日以上） | D23: 102 | E23: 151 | F23: 7 | H23: 岐阜県 | I23: 582 | J23: 485 | P23: 3.808 | Q23: 5.637333333 | R23: 0.2613333333 | S23: 1.1424 | T23: 1.6912 | U23: 0.0784
C24: NID-JPN-2024-v3.6_J_gioweb.pdf | H24: 静岡県 | I24: 624 | J24: 520
C25: 表5-45 | H25: 愛知県 | I25: 608.4 | J25: 507
H26: 三重県 | I26: 600 | J26: 500
H27: 滋賀県 | I27: 621.6 | J27: 518
H28: 京都府 | I28: 612 | J28: 510
H29: 大阪府 | I29: 594 | J29: 495
H30: 兵庫県 | I30: 601.2 | J30: 501
H31: 奈良県 | I31: 615.6 | J31: 513
H32: 和歌山県 | I32: 596.4 | J32: 497
H33: 鳥取県 | I33: 616.8 | J33: 514
H34: 島根県 | I34: 613.2 | J34: 511
H35: 岡山県 | I35: 631.2 | J35: 526
H36: 広島県 | I36: 633.6 | J36: 528
H37: 山口県 | I37: 604.8 | J37: 504
H38: 徳島県 | I38: 568.8 | J38: 474
H39: 香川県 | I39: 595.2 | J39: 496
H40: 愛媛県 | I40: 597.6 | J40: 498
H41: 高知県 | I41: 547.2 | J41: 456
H42: 福岡県 | I42: 595.2 | J42: 496
H43: 佐賀県 | I43: 622.8 | J43: 519
H44: 長崎県 | I44: 582 | J44: 485
H45: 熊本県 | I45: 615.6 | J45: 513
H46: 大分県 | I46: 598.8 | J46: 499
H47: 宮崎県 | I47: 595.2 | J47: 496
H48: 鹿児島県 | I48: 582 | J48: 485
H49: 沖縄県 | I49: 370.8 | J49: 309
H50: 「令和5年産⽔稲の作柄表⽰地帯別10a当たり平年収量」及び「作況指数算定に用いるふるい目幅（令和6年産～8年産用）」について：農林水産省 (maff.go.jp)
